bitfinex-derivatives/quotes_BTCF0:USTF0_20250213
["timestamp","ask_amount","ask_price","bid_price","bid_amount"]
[1739434001207,0.06982144,96182.0,96158.0,0.00015592]
[1739434001208,0.3608,96170.0,96161.0,0.2079542]
[1739434001412,0.6956596,96170.0,96161.0,0.2079542]
[1739434001808,0.3608,96162.0,96161.0,0.2079542]
[1739434002117,0.2079574,96160.0,96158.0,0.00015592]
[1739434002313,0.4279574,96160.0,96158.0,0.00015592]
[1739434002913,0.43838888,96160.0,96158.0,0.00015592]
[1739434004013,0.43838888,96160.0,96158.0,0.00415592]
[1739434004223,0.23043148,96160.0,96158.0,0.21211552]
[1739434004527,0.43839028,96160.0,96158.0,0.21211552]
[1739434005023,0.44639028,96160.0,96158.0,0.21611552]
[1739434005615,0.44539028,96160.0,96158.0,0.21011552]
[1739434005812,0.227,96160.0,96158.0,0.21011552]
[1739434006726,0.22,96160.0,96158.0,0.20911552]
[1739434006929,0.228,96160.0,96158.0,0.21011552]
[1739434010229,0.4359574,96160.0,96158.0,0.21011552]
[1739434015329,0.2159574,96160.0,96158.0,0.21011552]
[1739434015830,0.008,96160.0,96158.0,0.21011552]
[1739434017028,0.008,96160.0,96159.0,0.2079589]
[1739434018926,0.008,96160.0,96159.0,0.2089589]
[1739434019126,0.37143706,96162.0,96161.0,0.2079546]
[1739434019636,0.59143706,96162.0,96161.0,0.2079546]
[1739434020321,0.60043706,96162.0,96161.0,0.2089546]
[1739434022126,0.60043706,96162.0,96161.0,0.2099546]
[1739434022724,0.60043706,96162.0,96161.0,0.002]
[1739434022937,0.65043706,96162.0,96161.0,0.002]
[1739434026139,0.60043706,96162.0,96161.0,0.002]
[1739434032246,0.65100927,96162.0,96161.0,0.002]
[1739434035043,0.83751608,96162.0,96161.0,0.002]
[1739434037153,1.04546848,96162.0,96161.0,0.002]
[1739434039552,0.85896167,96162.0,96161.0,0.002]
[1739434042643,0.49816167,96162.0,96161.0,0.002]
[1739434042842,0.85896167,96162.0,96161.0,0.002]
[1739434044658,0.85896167,96162.0,96161.0,0.2099546]
[1739434045247,0.65100927,96162.0,96161.0,0.2099546]
[1739434046753,0.27957221,96162.0,96161.0,0.2099546]
[1739434047150,0.19687221,96162.0,96161.0,0.2099546]
[1739434047543,0.30227814,96162.0,96161.0,0.2099546]
[1739434047859,0.21957814,96162.0,96161.0,0.2099546]
[1739434049358,0.17497814,96162.0,96161.0,0.2099546]
[1739434050745,0.019,96162.0,96161.0,0.2099546]
[1739434054654,0.019,96162.0,96161.0,0.002]
[1739434059962,0.08892,96162.0,96161.0,0.002]
[1739434060763,0.019,96162.0,96161.0,0.002]
[1739434066465,0.0706,96162.0,96161.0,0.002]
[1739434068858,0.22657814,96162.0,96161.0,0.002]
[1739434070452,0.94817814,96162.0,96161.0,0.002]
[1739434072366,0.7922,96162.0,96161.0,0.002]
[1739434072562,0.86212,96162.0,96161.0,0.002]
[1739434075569,1.0700724,96162.0,96161.0,0.002]
[1739434075870,1.0001524,96162.0,96161.0,0.002]
[1739434077368,0.6393524,96162.0,96161.0,0.002]
[1739434078370,0.5877524,96162.0,96161.0,0.002]
[1739434078572,0.3798,96162.0,96161.0,0.002]
[1739434078773,0.44972,96162.0,96161.0,0.002]
[1739434079358,0.3798,96162.0,96161.0,0.002]
[1739434079563,0.44972,96162.0,96161.0,0.002]
[1739434080770,0.6576724,96162.0,96161.0,0.002]
[1739434080980,0.5877524,96162.0,96161.0,0.002]
[1739434083667,0.3798,96162.0,96161.0,0.002]
[1739434083875,0.44972,96162.0,96161.0,0.002]
[1739434084275,0.3798,96162.0,96161.0,0.002]
[1739434085374,0.53577814,96162.0,96161.0,0.002]
[1739434086172,0.53577814,96162.0,96161.0,0.2099546]
[1739434091486,0.17497814,96162.0,96161.0,0.2099546]
[1739434092386,0.019,96162.0,96161.0,0.2099546]
[1739434093088,0.019,96162.0,96161.0,0.22048714]
[1739434096991,0.019,96162.0,96161.0,0.43958714]
[1739434100285,0.019,96162.0,96161.0,0.4290546]
[1739434110093,0.019,96162.0,96161.0,0.2211]
[1739434110286,0.019,96162.0,96161.0,0.002]
[1739434110487,0.08888,96162.0,96161.0,0.002]
[1739434110691,0.12858,96162.0,96161.0,0.002]
[1739434110994,0.0587,96162.0,96161.0,0.002]
[1739434111890,0.0587,96162.0,96161.0,0.2099546]
[1739434112399,0.0587,96162.0,96161.0,0.002]
[1739434119092,0.36392704,96164.0,96161.0,0.002]
[1739434119093,0.24115992,96164.0,96161.0,0.002]
[1739434119292,0.06988,96163.0,96161.0,0.002]
[1739434119499,0.009,96162.0,96161.0,0.002]
[1739434119692,0.229,96162.0,96161.0,0.001]
[1739434119892,0.231,96162.0,96161.0,0.001]
[1739434120306,0.229,96162.0,96161.0,0.001]
[1739434120693,0.229,96162.0,96161.0,0.2089546]
[1739434121495,0.229,96162.0,96161.0,0.001]
[1739434121694,0.29888,96162.0,96161.0,0.001]
[1739434121895,0.29188,96162.0,96161.0,0.001]
[1739434122599,0.29188,96162.0,96158.0,0.00015592]
[1739434122799,0.4409524,96162.0,96161.0,0.001]
[1739434123507,0.4409524,96162.0,96158.0,0.00015592]
[1739434123508,0.2079589,96159.0,96158.0,0.00015592]
[1739434123697,0.4079589,96159.0,96158.0,0.00015592]
[1739434125903,0.4089589,96159.0,96158.0,0.00015592]
[1739434126096,0.4089589,96159.0,96158.0,0.00115592]
[1739434126301,0.4099589,96159.0,96158.0,0.00115592]
[1739434133903,1.1315589,96159.0,96158.0,0.00115592]
[1739434138211,0.9236,96159.0,96158.0,0.00115592]
[1739434138617,0.9236,96159.0,96158.0,0.03995592]
[1739434141015,0.5628,96159.0,96158.0,0.03995592]
[1739434143119,0.61337232,96159.0,96158.0,0.03995592]
[1739434146526,0.42364148,96159.0,96158.0,0.03995592]
[1739434148520,0.06284148,96159.0,96158.0,0.03995592]
[1739434150028,0.01226916,96159.0,96158.0,0.03995592]
[1739434150625,0.01226916,96159.0,96158.0,0.25905592]
[1739434151926,0.02276334,96159.0,96158.0,0.25905592]
[1739434152432,0.02281179,96159.0,96158.0,0.25905592]
[1739434157027,0.01231761,96159.0,96158.0,0.25905592]
[1739434157526,0.02253414,96159.0,96158.0,0.25905592]
[1739434160538,0.37311761,96159.0,96158.0,0.25905592]
[1739434162741,0.38366418,96159.0,96158.0,0.25905592]
[1739434163342,0.37311761,96159.0,96158.0,0.25905592]
[1739434173953,0.37311761,96159.0,96158.0,0.22025592]
[1739434174248,0.37311761,96159.0,96158.0,0.00115592]
[1739434177553,0.73391761,96159.0,96158.0,0.00115592]
[1739434178853,0.88979764,96159.0,96158.0,0.00115592]
[1739434179667,0.88979764,96159.0,96141.0,0.00156012]
[1739434179856,0.3608,96142.0,96141.0,0.00156012]
[1739434180047,0.5708,96142.0,96141.0,0.00156012]
[1739434180252,0.6469,96142.0,96141.0,0.00156012]
[1739434181661,0.6469,96142.0,96141.0,0.00656012]
[1739434182264,0.65742068,96142.0,96141.0,0.00656012]
[1739434182654,0.45785688,96142.0,96141.0,0.00656012]
[1739434187167,0.29662068,96142.0,96141.0,0.00656012]
[1739434194472,0.29662068,96142.0,96141.0,0.21455792]
[1739434197270,0.25772068,96142.0,96141.0,0.21455792]
[1739434197473,0.22052068,96142.0,96141.0,0.21455792]
[1739434197766,0.21,96142.0,96141.0,0.21455792]
[1739434199979,0.2203983,96142.0,96141.0,0.21455792]
[1739434200669,0.21,96142.0,96141.0,0.21455792]
[1739434202781,0.21,96142.0,96141.0,0.00656012]
[1739434203873,0.21,96142.0,96116.0,0.31146643]
[1739434204078,0.3608,96120.0,96116.0,0.31146643]
[1739434204273,0.5708,96120.0,96116.0,0.31146643]
[1739434204680,0.2080649,96110.0,96109.0,0.0357]
[1739434204873,0.2080715,96107.0,96105.0,0.00156084]
[1739434205077,0.4080715,96107.0,96105.0,0.00156084]
[1739434205679,0.2,96107.0,96105.0,0.00156084]
[1739434205985,0.201,96107.0,96105.0,0.00856084]
[1739434206784,0.21163321,96107.0,96105.0,0.00856084]
[1739434207582,0.21263321,96107.0,96105.0,0.02356084]
[1739434208286,0.21163321,96107.0,96105.0,0.00856084]
[1739434208485,0.21163321,96107.0,96105.0,0.01656084]
[1739434208683,0.21263321,96107.0,96105.0,0.01756084]
[1739434209385,0.78150531,96107.0,96105.0,0.01756084]
[1739434209799,0.78150531,96107.0,96105.0,0.016]
[1739434209999,0.2080844,96101.0,96100.0,0.10015601]
[1739434210191,0.4380844,96101.0,96100.0,0.10015601]
[1739434211191,0.4390844,96101.0,96100.0,0.11515601]
[1739434211700,0.4400844,96101.0,96100.0,0.11715601]
[1739434212200,0.4400844,96101.0,96088.0,0.0356]
[1739434212201,0.232,96101.0,96088.0,0.0356]
[1739434212400,0.232,96101.0,96075.0,0.00156134]
[1739434212401,0.208133,96079.0,96075.0,0.00156134]
[1739434212695,0.3608,96076.0,96075.0,0.00156134]
[1739434212900,0.5708,96076.0,96075.0,0.00156134]
[1739434213201,0.2081484,96072.0,96065.0,0.0363]
[1739434213501,0.3608,96066.0,96065.0,0.04686405]
[1739434213689,0.5808,96066.0,96065.0,0.0363]
[1739434214602,0.5818,96066.0,96065.0,0.0463]
[1739434214799,0.221,96066.0,96065.0,0.0463]
[1739434215599,0.222,96066.0,96065.0,0.0473]
[1739434216505,0.1649,96066.0,96065.0,0.0473]
[1739434216802,0.212,96066.0,96065.0,0.0473]
[1739434216995,0.212,96066.0,96065.0,0.0373]
[1739434220499,0.2081051,96092.0,96084.0,0.2081213]
[1739434220705,0.2101561,96085.0,96084.0,0.2081213]
[1739434221407,0.22051667,96085.0,96077.0,0.2081349]
[1739434221706,0.2081343,96078.0,96065.0,0.0363]
[1739434221910,0.4281343,96078.0,96073.0,0.2081441]
[1739434222097,0.22,96078.0,96073.0,0.2081441]
[1739434222294,0.22,96078.0,96065.0,0.0363]
[1739434222502,0.22,96078.0,96074.0,0.2081424]
[1739434222697,0.22,96078.0,96077.0,0.001]
[1739434222896,0.28992,96078.0,96077.0,0.001]
[1739434224008,0.29092,96078.0,96077.0,0.001]
[1739434224303,0.29192,96078.0,96076.0,0.2081374]
[1739434224511,0.222,96078.0,96076.0,0.2081374]
[1739434224899,0.222,96078.0,96077.0,0.002]
[1739434225100,0.29192,96078.0,96077.0,0.002]
[1739434225503,0.29192,96078.0,96076.0,0.2081374]
[1739434225504,0.29192,96078.0,96076.0,0.2101374]
[1739434225710,0.222,96078.0,96076.0,0.2101374]
[1739434226111,0.221,96078.0,96077.0,0.002]
[1739434226303,0.29192,96078.0,96077.0,0.002]
[1739434227712,0.29192,96078.0,96076.0,0.2081374]
[1739434227713,0.29092,96078.0,96076.0,0.2081374]
[1739434228013,0.222,96078.0,96076.0,0.2101374]
[1739434228314,0.222,96078.0,96077.0,0.002]
[1739434228519,0.29192,96078.0,96077.0,0.002]
[1739434229013,0.29192,96078.0,96076.0,0.2101374]
[1739434229214,0.222,96078.0,96076.0,0.2101374]
[1739434229507,0.222,96078.0,96077.0,0.002]
[1739434229714,0.29192,96078.0,96077.0,0.002]
[1739434230314,0.29192,96078.0,96077.0,0.2101364]
[1739434230503,0.222,96078.0,96077.0,0.2101364]
[1739434231113,0.222,96078.0,96077.0,0.2081364]
[1739434231610,0.221,96078.0,96077.0,0.2101364]
[1739434231810,0.222,96078.0,96077.0,0.2101364]
[1739434243509,0.2726129,96078.0,96077.0,0.2101364]
[1739434246714,0.222,96078.0,96077.0,0.2101364]
[1739434250626,0.222,96078.0,96077.0,0.002]
[1739434250816,0.29188,96078.0,96077.0,0.002]
[1739434251016,0.29188,96078.0,96077.0,0.2101364]
[1739434251217,0.222,96078.0,96077.0,0.2101364]
[1739434252524,0.222,96078.0,96077.0,0.002]
[1739434252829,0.29188,96078.0,96072.0,0.2191]
[1739434253017,0.3608,96073.0,96072.0,0.2191]
[1739434253218,0.5808,96073.0,96072.0,0.2191]
[1739434254419,0.5818,96073.0,96072.0,0.2211]
[1739434254817,0.5828,96073.0,96072.0,0.2211]
[1739434255214,0.5828,96073.0,96072.0,0.4292472]
[1739434257023,0.63341761,96073.0,96072.0,0.4292472]
[1739434260020,0.5828,96073.0,96072.0,0.4292472]
[1739434262121,0.222,96073.0,96072.0,0.4292472]
[1739434263624,0.002,96073.0,96072.0,0.7900472]
[1739434263833,0.15601567,96081.0,96080.0,0.2081299]
[1739434264038,0.28601567,96081.0,96080.0,0.2081299]
[1739434264943,0.28701567,96081.0,96080.0,0.2081299]
[1739434265327,0.28701567,96081.0,96080.0,0.4272299]
[1739434265528,0.28801567,96081.0,96080.0,0.4272299]
[1739434265727,0.132,96081.0,96080.0,0.4272299]
[1739434271442,0.31633821,96091.0,96090.0,0.2081083]
[1739434271636,0.53633821,96091.0,96090.0,0.2081083]
[1739434272843,0.53733821,96091.0,96090.0,0.2091083]
[1739434273236,0.53833821,96091.0,96090.0,0.2091083]
[1739434277831,0.53833821,96091.0,96090.0,0.001]
[1739434279936,0.52808905,96091.0,96090.0,0.001]
[1739434280439,0.52808905,96091.0,96090.0,0.0382]
[1739434281237,0.52808905,96091.0,96090.0,0.2573]
[1739434281631,0.52808905,96091.0,96090.0,0.2201]
[1739434287243,0.52808905,96091.0,96090.0,0.001]
[1739434292743,0.57869888,96091.0,96090.0,0.001]
[1739434296846,0.57869888,96091.0,96090.0,0.0358]
[1739434299153,0.68418224,96091.0,96090.0,0.0358]
[1739434302559,0.52808905,96091.0,96090.0,0.0358]
[1739434305563,0.57869786,96091.0,96090.0,0.0358]
[1739434310766,0.57869786,96091.0,96090.0,0.2439083]
[1739434315666,0.78680396,96091.0,96090.0,0.001]
[1739434315868,0.57869786,96091.0,96069.0,0.0006]
[1739434316171,0.3608,96070.0,96051.0,0.2191]
[1739434316357,0.3608,96062.0,96054.0,0.2191]
[1739434316562,0.5808,96062.0,96057.0,0.2081793]
[1739434316865,0.5808,96062.0,96054.0,0.2191]
[1739434317072,0.5808,96062.0,96060.0,0.2081724]
[1739434317967,0.59093389,96062.0,96060.0,0.2081724]
[1739434318164,0.59193389,96062.0,96060.0,0.2081724]
[1739434318771,0.59293389,96062.0,96060.0,0.001]
[1739434319181,0.59293389,96062.0,96060.0,0.2091719]
[1739434319785,0.222,96062.0,96061.0,0.2191]
[1739434319976,0.002,96062.0,96061.0,0.252]
[1739434321177,0.001,96062.0,96061.0,0.252]
[1739434321372,0.002,96062.0,96061.0,0.26355164]
[1739434328787,0.002,96062.0,96061.0,0.47172284]
[1739434330292,1e-07,96062.0,96061.0,0.62102284]
[1739434330492,0.15603813,96086.0,96085.0,0.2081191]
[1739434330793,0.20603813,96086.0,96085.0,0.2081191]
[1739434331696,0.20703813,96086.0,96085.0,0.2081191]
[1739434331995,0.20703813,96086.0,96085.0,0.2091191]
[1739434331996,0.20803813,96086.0,96085.0,0.2091191]
[1739434332897,0.052,96086.0,96085.0,0.2091191]
[1739434340687,0.052,96086.0,96085.0,0.001]
[1739434340893,0.12188,96086.0,96078.0,0.2191]
[1739434341092,0.2081365,96077.0,96076.0,0.0001561]
[1739434341393,0.4381365,96077.0,96076.0,0.0001561]
[1739434343497,0.231,96077.0,96076.0,0.001]
[1739434343803,0.5100165,96077.0,96076.0,0.001]
[1739434344005,0.4401365,96077.0,96076.0,0.001]
[1739434344706,0.8009365,96077.0,96076.0,0.001]
[1739434345903,0.5928,96077.0,96076.0,0.001]
[1739434346088,0.66268,96077.0,96076.0,0.001]
[1739434346293,0.30188,96077.0,96076.0,0.001]
[1739434355010,0.30188,96077.0,96067.0,0.0001561]
[1739434355207,0.3608,96073.0,96067.0,0.0001561]
[1739434355409,0.5708,96073.0,96067.0,0.0001561]
[1739434357014,0.5718,96073.0,96067.0,0.0001561]
[1739434358307,0.5728,96073.0,96067.0,0.0001561]
[1739434359315,0.5728,96073.0,96068.0,0.2081551]
[1739434359514,0.5728,96073.0,96072.0,0.2081473]
[1739434360817,0.5728,96073.0,96067.0,0.0001561]
[1739434361811,0.5718,96073.0,96067.0,0.0001561]
[1739434362008,0.5728,96073.0,96067.0,0.0001561]
[1739434362607,0.7809454,96073.0,96067.0,0.0001561]
[1739434363714,0.2081485,96072.0,96067.0,0.0001561]
[1739434364010,0.4181485,96072.0,96067.0,0.0001561]
[1739434365019,0.211,96072.0,96067.0,0.0001561]
[1739434365413,0.212,96072.0,96067.0,0.0001561]
[1739434365613,0.212,96072.0,96070.0,0.2081507]
[1739434366923,0.212,96072.0,96067.0,0.0001561]
[1739434367423,0.2081507,96071.0,96067.0,0.0001561]
[1739434367623,0.4281507,96071.0,96067.0,0.0001561]
[1739434369516,0.4291507,96071.0,96067.0,0.0001561]
[1739434369815,0.4301507,96071.0,96067.0,0.0001561]
[1739434370215,0.222,96071.0,96067.0,0.0001561]
[1739434371126,0.222,96071.0,96070.0,0.2081516]
[1739434372527,0.5828,96071.0,96070.0,0.2081516]
[1739434372825,0.39337395,96071.0,96070.0,0.2081516]
[1739434373019,0.39237395,96071.0,96070.0,0.2081516]
[1739434373218,0.39337395,96071.0,96070.0,0.2081516]
[1739434377718,0.54941208,96071.0,96070.0,0.2081516]
[1739434378521,0.18861208,96071.0,96070.0,0.2081516]
[1739434379129,0.18761208,96071.0,96070.0,0.2081516]
[1739434379314,0.18861208,96071.0,96070.0,0.2081516]
[1739434380026,0.18761208,96071.0,96070.0,0.2081516]
[1739434380227,0.18861208,96071.0,96070.0,0.2081516]
[1739434381128,0.18861208,96071.0,96070.0,0.4272516]
[1739434381635,0.03257395,96071.0,96070.0,0.4272516]
[1739434382340,0.03257395,96071.0,96070.0,0.43777924]
[1739434385233,0.00688154,96080.0,96079.0,0.2081321]
[1739434385537,0.08688154,96080.0,96079.0,0.5689321]
[1739434385835,0.08688154,96080.0,96079.0,0.2081321]
[1739434386032,0.2081479,96072.0,96070.0,0.2191]
[1739434386231,0.22,96072.0,96070.0,0.2191]
[1739434386539,0.22,96072.0,96071.0,0.2081495]
[1739434387230,0.23040605,96072.0,96071.0,0.2081495]
[1739434387538,0.23140605,96072.0,96071.0,0.2081495]
[1739434388835,0.23240605,96072.0,96071.0,0.2101495]
[1739434391935,0.222,96072.0,96071.0,0.2101495]
[1739434392131,0.0343,96093.0,96071.0,0.0348]
[1739434392335,0.06988,96086.0,96081.0,0.3608]
[1739434392534,0.0343,96093.0,96092.0,0.208104]
[1739434392734,0.1843,96093.0,96092.0,0.208104]
[1739434393434,0.15,96093.0,96092.0,0.208104]
[1739434394133,0.151,96093.0,96092.0,0.209104]
[1739434394328,0.152,96093.0,96092.0,0.211104]
[1739434400249,0.0343,96107.0,96106.0,0.2080737]
[1739434400450,0.2243,96107.0,96106.0,0.2080737]
[1739434400749,0.19,96107.0,96106.0,0.2080737]
[1739434401444,0.197,96107.0,96106.0,0.2080737]
[1739434401853,0.197,96107.0,96106.0,0.21820509]
[1739434402235,0.197,96107.0,96106.0,0.43730509]
[1739434402441,0.0001561,96116.0,96115.0,0.2080542]
[1739434402642,0.01044792,96116.0,96115.0,0.2080542]
[1739434402850,0.0001561,96116.0,96115.0,0.2080542]
[1739434403349,0.2001561,96116.0,96115.0,0.2080542]
[1739434403848,0.2001561,96116.0,96115.0,0.2090542]
[1739434404252,0.21059859,96116.0,96115.0,0.2090542]
[1739434404750,0.21659859,96116.0,96115.0,0.2110542]
[1739434414747,0.04419717,96116.0,96115.0,0.2110542]
[1739434414946,0.006,96116.0,96115.0,0.2110542]
[1739434415147,0.226,96116.0,96115.0,0.2110542]
[1739434415452,0.23653177,96116.0,96115.0,0.2110542]
[1739434421053,0.23653177,96116.0,96115.0,0.003]
[1739434426661,0.23653177,96116.0,96091.0,0.2191]
[1739434426662,0.53653177,96116.0,96091.0,0.2191]
[1739434426869,0.3608,96100.0,96091.0,0.2191]
[1739434427066,0.1022,96099.0,96095.0,0.20965831]
[1739434427266,0.510289,96099.0,96095.0,0.00156091]
[1739434427962,0.510289,96099.0,96097.0,0.0011561]
[1739434428159,0.3022,96099.0,96097.0,0.0011561]
[1739434428557,0.3022,96099.0,96097.0,0.2092486]
[1739434428761,0.3032,96099.0,96097.0,0.2162486]
[1739434429160,0.3032,96099.0,96097.0,0.0081561]
[1739434429361,0.3022,96099.0,96097.0,0.0041561]
[1739434430262,0.2676,96099.0,96097.0,0.2122483]
[1739434430762,0.2,96099.0,96097.0,0.2122483]
[1739434430962,0.2,96099.0,96097.0,0.0041561]
[1739434431166,0.2,96099.0,96098.0,0.208091]
[1739434432472,0.2,96099.0,96098.0,0.212091]
[1739434435668,0.2,96099.0,96098.0,0.431191]
[1739434436364,0.2,96099.0,96098.0,0.2231]
[1739434437171,0.2,96099.0,96098.0,0.431191]
[1739434446475,0.2,96099.0,96098.0,0.2231]
[1739434456070,0.2,96099.0,96098.0,0.004]
[1739434456379,0.63064,96099.0,96082.0,0.2191]
[1739434456678,0.3608,96084.0,96082.0,0.2191]
[1739434456877,0.4008,96084.0,96082.0,0.2191]
[1739434457573,0.4008,96084.0,96082.0,0.2231]
[1739434458188,0.4018,96084.0,96082.0,0.2251]
[1739434459185,0.4119661,96084.0,96082.0,0.2251]
[1739434459381,0.4129661,96084.0,96082.0,0.2361]
[1739434460281,0.6210895,96084.0,96082.0,0.2361]
[1739434474190,0.2081235,96083.0,96082.0,0.2361]
[1739434474398,0.4281235,96083.0,96082.0,0.2361]
[1739434476591,0.4291235,96083.0,96082.0,0.2321]
[1739434477191,0.4291235,96083.0,96082.0,0.2211]
[1739434477393,0.4301235,96083.0,96082.0,0.2331]
[1739434478100,0.4301235,96083.0,96082.0,0.014]
[1739434480393,0.222,96083.0,96073.0,0.0001561]
[1739434480694,0.568943,96074.0,96073.0,0.0001561]
[1739434480900,0.778943,96074.0,96073.0,0.0001561]
[1739434481694,0.778943,96074.0,96073.0,0.0021561]
[1739434482398,0.778943,96074.0,96073.0,0.0041561]
[1739434483100,0.778943,96074.0,96073.0,0.0021561]
[1739434483101,0.779943,96074.0,96073.0,0.0021561]
[1739434483399,0.780943,96074.0,96073.0,0.0031561]
[1739434484597,0.2081603,96066.0,96065.0,0.2191]
[1739434484901,0.2081668,96063.0,96062.0,0.00156113]
[1739434485097,0.2181668,96063.0,96062.0,0.00156113]
[1739434485596,0.01,96063.0,96062.0,0.00156113]
[1739434486599,0.011,96063.0,96062.0,0.00256113]
[1739434486800,0.012,96063.0,96062.0,0.00256113]
[1739434487295,0.02223334,96063.0,96062.0,0.00256113]
[1739434488795,0.02223334,96063.0,96062.0,0.03416113]
[1739434488992,0.012,96063.0,96062.0,0.03416113]
[1739434489292,0.002,96063.0,96062.0,0.25326113]
[1739434489599,0.002,96063.0,96062.0,0.26378967]
[1739434491409,0.002,96063.0,96062.0,0.25326113]
[1739434491599,0.232,96063.0,96062.0,0.25326113]
[1739434491901,0.002,96063.0,96062.0,0.25326113]
[1739434500801,0.002,96063.0,96062.0,0.61406113]
[1739434500998,0.0001561,96072.0,96071.0,0.2081495]
[1739434501205,0.0901561,96072.0,96071.0,0.2081495]
[1739434501706,0.2081538,96069.0,96068.0,0.3608]
[1739434501900,0.22,96069.0,96062.0,0.22166113]
[1739434502105,0.3608,96068.0,96062.0,0.22066113]
[1739434502305,0.001,96063.0,96062.0,0.00156113]
[1739434502611,0.001,96063.0,96047.0,0.2082009]
[1739434502612,0.211,96063.0,96036.0,0.2191]
[1739434502812,0.08194249,96046.0,96043.0,0.208209]
[1739434503012,0.05,96046.0,96045.0,0.2082058]
[1739434503413,0.08194249,96062.0,96060.0,0.2081733]
[1739434503611,0.09,96062.0,96060.0,0.2081733]
[1739434503820,0.09,96062.0,96061.0,0.3608]
[1739434504117,0.3608,96082.0,96070.0,0.2081517]
[1739434504118,0.00015619,96071.0,96070.0,0.2081517]
[1739434504314,0.00015619,96071.0,96070.0,0.5689517]
[1739434505818,0.00115619,96071.0,96070.0,0.5699517]
[1739434506418,0.00215619,96071.0,96070.0,0.5709517]
[1739434506720,0.21215619,96071.0,96070.0,0.002]
[1739434507112,0.24425619,96071.0,96070.0,0.002]
[1739434508125,0.24425619,96071.0,96042.0,0.2408117]
[1739434508425,0.3608,96057.0,96042.0,0.2082117]
[1739434508718,0.0301,96056.0,96044.0,0.5524077]
[1739434508925,0.0801,96056.0,96044.0,0.5524077]
[1739434509110,0.0801,96056.0,96046.0,0.2082017]
[1739434509419,0.0801,96056.0,96051.0,0.22020475]
[1739434509618,0.09061464,96056.0,96051.0,0.22020475]
[1739434510019,0.09161464,96056.0,96051.0,0.22020475]
[1739434510514,0.09061464,96056.0,96051.0,0.22020475]
[1739434511115,0.09161464,96056.0,96051.0,0.22020475]
[1739434511412,0.09261464,96056.0,96051.0,0.22020475]
[1739434511614,0.27261464,96056.0,96051.0,0.22020475]
[1739434511913,0.24261464,96056.0,96051.0,0.22020475]
[1739434512916,0.24261464,96056.0,96051.0,0.00110475]
[1739434513115,0.24161464,96056.0,96051.0,0.00010475]
[1739434513924,0.24161464,96056.0,96033.0,0.2191]
[1739434513925,0.2081917,96052.0,96033.0,0.2191]
[1739434514119,0.3608,96041.0,96031.0,0.01787]
[1739434514328,0.3608,96032.0,96011.0,0.4273794]
[1739434514624,0.3608,96016.0,96011.0,0.4279794]
[1739434514824,0.3608,96016.0,96013.0,0.2082752]
[1739434515221,0.3608,96023.0,96011.0,0.2191]
[1739434515418,0.01,96023.0,96021.0,0.2082562]
[1739434516122,0.02023507,96023.0,96021.0,0.2082562]
[1739434516513,0.02123507,96023.0,96021.0,0.2082562]
[1739434517720,0.001,96023.0,96021.0,0.2082562]
[1739434517918,0.001,96023.0,96022.0,0.2191]
[1739434518416,0.002,96023.0,96022.0,0.6213841]
[1739434519328,0.00015619,96024.0,96023.0,0.2082535]
[1739434519527,0.15576365,96027.0,96023.0,0.2191]
[1739434519731,0.15576365,96027.0,96026.0,0.208247]
[1739434520614,0.01065761,96042.0,96037.0,0.2082218]
[1739434520818,0.0305,96049.0,96038.0,0.3608]
[1739434521122,0.04065619,96049.0,96037.0,0.2082218]
[1739434521726,0.001,96042.0,96037.0,0.2082218]
[1739434522120,0.001,96042.0,96030.0,0.48636094]
[1739434522121,0.001,96042.0,96030.0,0.36136]
[1739434522425,0.21,96042.0,96030.0,0.3608]
[1739434522726,0.01046937,96042.0,96030.0,0.3608]
[1739434522923,0.01,96042.0,96033.0,0.2082301]
[1739434523120,0.011,96042.0,96030.0,0.48580094]
[1739434523522,0.01,96042.0,96030.0,0.48580094]
[1739434523720,0.011,96042.0,96030.0,0.48580094]
[1739434524030,0.002,96042.0,96040.0,0.208216]
[1739434529531,0.002,96042.0,96030.0,0.00056]
[1739434529532,0.3608,96041.0,96030.0,0.00056]
[1739434529835,0.3608,96041.0,96015.0,0.3608]
[1739434529836,0.33321964,96040.0,96023.0,0.2082527]
[1739434530034,0.56321964,96040.0,96023.0,0.2082527]
[1739434530224,0.4382187,96040.0,96023.0,0.2082527]
[1739434530419,0.23,96040.0,96023.0,0.2082527]
[1739434530729,0.3608,96031.0,96016.0,0.0332]
[1739434530932,0.3708,96031.0,96016.0,0.0332]
[1739434531524,0.3708,96031.0,96018.0,0.2082631]
[1739434531725,0.3708,96031.0,96022.0,0.2082545]
[1739434531930,0.3708,96031.0,96020.0,0.12500094]
[1739434532234,0.3708,96031.0,96029.0,0.2082393]
[1739434533134,0.3708,96031.0,96020.0,0.12500094]
[1739434533337,0.3708,96031.0,96021.0,0.2082557]
[1739434533533,0.2082414,96029.0,96016.0,0.0332]
[1739434534239,0.2082414,96029.0,96017.0,0.20842259]
[1739434534436,0.033,96030.0,96019.0,0.2082615]
[1739434534832,0.043,96030.0,96019.0,0.2082615]
[1739434535139,0.001,96029.0,96019.0,0.2082615]
[1739434536136,0.241,96029.0,96019.0,0.2082615]
[1739434536337,0.241,96029.0,96017.0,0.00015619]
[1739434536534,0.2082626,96019.0,96017.0,0.00015619]
[1739434536739,0.4182626,96019.0,96017.0,0.00015619]
[1739434537034,0.2082755,96013.0,96001.0,0.2513]
[1739434537235,0.12500094,96011.0,96001.0,0.2513]
[1739434537438,0.12500094,96011.0,96001.0,0.0322]
[1739434537636,0.16500094,96011.0,95999.0,0.0673]
[1739434537942,0.04,96011.0,95999.0,0.0673]
[1739434539040,0.04,96011.0,96000.0,0.22500094]
[1739434539243,0.04,96011.0,96003.0,0.2082959]
[1739434539446,0.041,96011.0,96003.0,0.2082959]
[1739434540033,0.042,96011.0,96000.0,0.22500094]
[1739434540243,0.002,96011.0,96009.0,0.2082831]
[1739434540437,0.002,96011.0,96010.0,0.0327]
[1739434540940,0.001,96011.0,96010.0,0.0327]